[Event "*** Titled Tuesday 3|2 Blitz"]
[Site "Chess.com"]
[Date "2016.05.03"]
[Round "6"]
[White "cabalista"]
[Black "jk13"]
[Result "1/2-1/2"]
[WhiteElo "2364"]
[BlackElo "2404"]
[TimeControl "180+2"]
[EndTime "12:14:17 PDT"]
[Termination "Game drawn by repetition"]

1. e4 {[%clk 0:03:01.9]} 1... e5 {[%clk 0:03:00.5]} 2. Nc3 {[%clk 0:03:01.2]}
2... Nc6 {[%clk 0:03:02.4]} 3. Bc4 {[%clk 0:03:00.7]} 3... Nf6 {[%clk
0:03:03.7]} 4. d3 {[%clk 0:03:01]} 4... Na5 {[%clk 0:03:03.3]} 5. Nge2 {[%clk
0:03:00.3]} 5... Nxc4 {[%clk 0:03:03.5]} 6. dxc4 {[%clk 0:03:01.1]} 6... Be7
{[%clk 0:03:05.4]} 7. O-O {[%clk 0:03:00.4]} 7... d6 {[%clk 0:03:07.3]} 8. b3
{[%clk 0:02:58]} 8... O-O {[%clk 0:03:09.2]} 9. a4 {[%clk 0:02:57.2]} 9... c6
{[%clk 0:03:11.1]} 10. a5 {[%clk 0:02:56.5]} 10... a6 {[%clk 0:03:10.3]} 11. h3
{[%clk 0:02:56.5]} 11... Qc7 {[%clk 0:03:11.3]} 12. Bb2 {[%clk 0:02:56.5]} 12...
Nd7 {[%clk 0:03:11.8]} 13. f4 {[%clk 0:02:53.6]} 13... exf4 {[%clk 0:03:10.1]}
14. Nxf4 {[%clk 0:02:53]} 14... Bf6 {[%clk 0:03:07.1]} 15. Qe1 {[%clk
0:02:15.1]} 15... Be5 {[%clk 0:03:07.2]} 16. Na4 {[%clk 0:02:10.5]} 16... Re8
{[%clk 0:02:45.7]} 17. Qf2 {[%clk 0:02:03.3]} 17... Nf6 {[%clk 0:02:41.9]} 18.
Bxe5 {[%clk 0:01:46.9]} 18... Rxe5 {[%clk 0:02:43.8]} 19. Nb6 {[%clk 0:01:46]}
19... Rb8 {[%clk 0:02:43.5]} 20. Rae1 {[%clk 0:01:33.8]} 20... Nxe4 {[%clk
0:02:30.1]} 21. Qf3 {[%clk 0:01:27.4]} 21... f5 {[%clk 0:02:27.6]} 22. Re2
{[%clk 0:00:54.4]} 22... Rxa5 {[%clk 0:02:27.5]} 23. Nxc8 {[%clk 0:00:49.6]}
23... Qxc8 {[%clk 0:02:29.4]} 24. Nd3 {[%clk 0:00:45.8]} 24... Qc7 {[%clk
0:02:19.5]} 25. b4 {[%clk 0:00:42.8]} 25... Ra3 {[%clk 0:02:13.1]} 26. Qxf5
{[%clk 0:00:41.7]} 26... Nf6 {[%clk 0:02:03.8]} 27. Qe6+ {[%clk 0:00:35.4]}
27... Kh8 {[%clk 0:01:57.8]} 28. c5 {[%clk 0:00:33.3]} 28... dxc5 {[%clk
0:01:47]} 29. Ne5 {[%clk 0:00:26.9]} 29... Rf8 {[%clk 0:01:47.9]} 30. Re4 {[%clk
0:00:20.3]} 30... Qc8 {[%clk 0:01:26.5]} 31. Nf7+ {[%clk 0:00:20.3]} 31... Kg8
{[%clk 0:01:27.1]} 32. Nh6+ {[%clk 0:00:20.2]} 32... Kh8 {[%clk 0:01:28.3]} 33.
Nf7+ {[%clk 0:00:18.4]} 33... Kg8 {[%clk 0:01:29.2]} 34. Nh6+ {[%clk 0:00:13.7]}
34... Kh8 {[%clk 0:01:29.9]} 35. Nf7+ {[%clk 0:00:10.5]} 35... Kg8 {[%clk
0:01:29.2]} 36. Nh6+ {[%clk 0:00:10.6]} 36... Kh8 {[%clk 0:01:29.7]} 37. Nf7+
{[%clk 0:00:08.7]} 37... Kg8 {[%clk 0:01:30.5]} 38. Nh6+ {[%clk 0:00:09.5]}
38... Kh8 {[%clk 0:01:31.8]} 39. Nf7+ {[%clk 0:00:10.3]} 1/2-1/2

[Event "*** Titled Tuesday 3|2 Blitz"]
[Site "Chess.com"]
[Date "2016.05.03"]
[Round "6"]
[White "YuriyKrykun"]
[Black "HansCoolNiemann"]
[Result "0-1"]
[WhiteElo "2278"]
[BlackElo "2270"]
[TimeControl "180+2"]
[EndTime "12:14:17 PDT"]
[Termination "HansCoolNiemann won by resignation"]

1. Nf3 {[%clk 0:02:56]} 1... Nf6 {[%clk 0:02:59.6]} 2. g3 {[%clk 0:02:57.3]}
2... b5 {[%clk 0:02:59.9]} 3. Bg2 {[%clk 0:02:58.4]} 3... Bb7 {[%clk 0:03:01.2]}
4. O-O {[%clk 0:03:00.1]} 4... e6 {[%clk 0:03:02]} 5. d4 {[%clk 0:03:00]} 5...
c5 {[%clk 0:03:02.8]} 6. c3 {[%clk 0:02:58.9]} 6... Be7 {[%clk 0:03:02.5]} 7. a4
{[%clk 0:02:59.8]} 7... a6 {[%clk 0:03:02.6]} 8. axb5 {[%clk 0:03:01.1]} 8...
axb5 {[%clk 0:02:59.1]} 9. Rxa8 {[%clk 0:03:03]} 9... Bxa8 {[%clk 0:02:57.9]}
10. Bg5 {[%clk 0:03:04.4]} 10... cxd4 {[%clk 0:02:55.1]} 11. cxd4 {[%clk
0:02:58.9]} 11... O-O {[%clk 0:02:55.1]} 12. Qb3 {[%clk 0:02:58.5]} 12... Qa5
{[%clk 0:02:51.8]} 13. Na3 {[%clk 0:02:57.9]} 13... b4 {[%clk 0:02:49.4]} 14.
Nc4 {[%clk 0:02:57.6]} 14... Qb5 {[%clk 0:02:50.1]} 15. Bxf6 {[%clk 0:02:50.3]}
15... gxf6 {[%clk 0:02:44.5]} 16. e3 {[%clk 0:02:50.9]} 16... Bd5 {[%clk
0:02:41.5]} 17. Nfd2 {[%clk 0:02:51.3]} 17... Nc6 {[%clk 0:02:41.7]} 18. Qc2
{[%clk 0:02:48.1]} 18... b3 {[%clk 0:02:35.7]} 19. Qc1 {[%clk 0:02:39.6]} 19...
Rc8 {[%clk 0:02:33.1]} 20. Bxd5 {[%clk 0:02:23.5]} 20... exd5 {[%clk 0:02:29.3]}
21. Na3 {[%clk 0:02:22.8]} 21... Bxa3 {[%clk 0:02:27.1]} 22. bxa3 {[%clk
0:02:24.2]} 22... b2 {[%clk 0:02:29]} 23. Qb1 {[%clk 0:02:17.9]} 23... Na5
{[%clk 0:02:29]} 24. Kg2 {[%clk 0:01:55]} 24... Nc4 {[%clk 0:02:18.9]} 25. Qd3
{[%clk 0:01:52.9]} 25... Qa5 {[%clk 0:02:08.3]} 26. Nb1 {[%clk 0:01:50.2]} 26...
Nd6 {[%clk 0:01:59]} 27. Qb3 {[%clk 0:01:44.8]} 27... Nc4 {[%clk 0:01:55.2]} 28.
Qd3 {[%clk 0:01:43.6]} 28... Qb6 {[%clk 0:01:47.5]} 29. Rd1 {[%clk 0:01:39]}
29... Nd6 {[%clk 0:01:46]} 30. Re1 {[%clk 0:01:33.5]} 30... Rc1 {[%clk
0:01:42.5]} 31. Re2 {[%clk 0:01:34.6]} 31... Nc4 {[%clk 0:01:36.1]} 32. e4
{[%clk 0:01:29.2]} 32... Qc6 {[%clk 0:01:30.9]} 33. f3 {[%clk 0:01:24.5]} 33...
Qa4 {[%clk 0:01:17.1]} 34. exd5 {[%clk 0:01:21.8]} 34... Qd1 {[%clk 0:01:15.9]}
35. Qxd1 {[%clk 0:01:15.2]} 35... Rxd1 {[%clk 0:01:14.3]} 36. Nc3 {[%clk
0:01:16.6]} 36... Rc1 {[%clk 0:01:10.8]} 37. Rxb2 {[%clk 0:01:13.3]} 37... Nxb2
{[%clk 0:01:10.1]} 38. Ne4 {[%clk 0:01:14.9]} 38... Nc4 {[%clk 0:01:07.1]} 39.
Nxf6+ {[%clk 0:01:13.6]} 39... Kg7 {[%clk 0:01:09]} 40. Nxd7 {[%clk 0:01:15.2]}
40... Rd1 {[%clk 0:01:09.2]} 41. a4 {[%clk 0:01:12.6]} 41... Rxd4 {[%clk
0:01:08.2]} 42. Nc5 {[%clk 0:01:13.6]} 42... Rxd5 {[%clk 0:01:07.3]} 43. Ne4
{[%clk 0:01:15.2]} 43... Nb6 {[%clk 0:01:05.8]} 44. Nc3 {[%clk 0:01:15.4]} 44...
Rd3 {[%clk 0:01:04.7]} 45. Ne4 {[%clk 0:01:16.1]} 45... Nxa4 {[%clk 0:01:03.5]}
46. Nc5 {[%clk 0:01:17.2]} 46... Nxc5 {[%clk 0:01:02.3]} 0-1

[Event "*** Titled Tuesday 3|2 Blitz"]
[Site "Chess.com"]
[Date "2016.05.03"]
[Round "6"]
[White "flavettes"]
[Black "pedromartinez91"]
[Result "0-1"]
[WhiteElo "2365"]
[BlackElo "2355"]
[TimeControl "180+2"]
[EndTime "12:14:47 PDT"]
[Termination "pedromartinez91 won by resignation"]

1. d4 {[%clk 0:03:01.9]} 1... d5 {[%clk 0:03:00.3]} 2. c4 {[%clk 0:03:02.9]}
2... e6 {[%clk 0:03:00.5]} 3. Nc3 {[%clk 0:03:03.4]} 3... Nf6 {[%clk 0:02:59.9]}
4. Bg5 {[%clk 0:03:02.6]} 4... Be7 {[%clk 0:03:00]} 5. e3 {[%clk 0:03:03.7]}
5... O-O {[%clk 0:02:31.1]} 6. cxd5 {[%clk 0:03:01.4]} 6... exd5 {[%clk
0:02:30.9]} 7. Bd3 {[%clk 0:03:01.7]} 7... c6 {[%clk 0:02:31.5]} 8. Nf3 {[%clk
0:03:00.9]} 8... a5 {[%clk 0:02:30.8]} 9. O-O {[%clk 0:03:01.2]} 9... Nbd7
{[%clk 0:02:27.2]} 10. a3 {[%clk 0:02:58.3]} 10... Re8 {[%clk 0:02:22.1]} 11.
Rb1 {[%clk 0:02:58.1]} 11... g6 {[%clk 0:02:21.3]} 12. b4 {[%clk 0:02:58.1]}
12... axb4 {[%clk 0:02:21.9]} 13. axb4 {[%clk 0:03:00]} 13... b5 {[%clk
0:02:22.6]} 14. e4 {[%clk 0:02:55.1]} 14... Nxe4 {[%clk 0:02:16.4]} 15. Bxe7
{[%clk 0:02:40]} 15... Nxc3 {[%clk 0:02:05.7]} 16. Bxd8 {[%clk 0:02:39.9]} 16...
Nxd1 {[%clk 0:02:05.2]} 17. Bg5 {[%clk 0:02:33.1]} 17... Nc3 {[%clk 0:02:02.9]}
18. Rbc1 {[%clk 0:02:32]} 18... Ra3 {[%clk 0:02:01]} 19. Bd2 {[%clk 0:02:26.1]}
19... Na2 {[%clk 0:01:43.5]} 20. Ra1 {[%clk 0:01:40.7]} 20... Rxd3 {[%clk
0:01:22.2]} 21. Rxa2 {[%clk 0:01:35.4]} 21... Nb6 {[%clk 0:01:22.8]} 22. Rc1
{[%clk 0:01:13.7]} 22... Nc4 {[%clk 0:01:21.5]} 23. Bc3 {[%clk 0:01:15]} 23...
f6 {[%clk 0:01:14.7]} 24. Kf1 {[%clk 0:01:06.1]} 24... Bg4 {[%clk 0:01:03.9]}
25. Ne1 {[%clk 0:00:57.9]} 25... Rd1 {[%clk 0:00:51]} 26. Rxd1 {[%clk 0:00:34]}
26... Bxd1 {[%clk 0:00:50.8]} 27. Nd3 {[%clk 0:00:32.5]} 27... Ba4 {[%clk
0:00:43]} 28. Nc5 {[%clk 0:00:32]} 28... Kf7 {[%clk 0:00:40.5]} 29. Nxa4 {[%clk
0:00:31.3]} 29... Ra8 {[%clk 0:00:40.4]} 30. Ke2 {[%clk 0:00:30.2]} 30... Rxa4
{[%clk 0:00:41.2]} 31. Rxa4 {[%clk 0:00:31.1]} 31... bxa4 {[%clk 0:00:42.3]} 32.
g4 {[%clk 0:00:32]} 32... Nd6 {[%clk 0:00:43.4]} 33. Ba1 {[%clk 0:00:31.7]}
33... Nb5 {[%clk 0:00:44.6]} 34. Kd3 {[%clk 0:00:32.1]} 34... f5 {[%clk
0:00:45]} 35. h3 {[%clk 0:00:32.4]} 35... Kf6 {[%clk 0:00:44.1]} 36. f4 {[%clk
0:00:24.4]} 36... fxg4 {[%clk 0:00:44.4]} 37. hxg4 {[%clk 0:00:25.5]} 37... h5
{[%clk 0:00:46]} 0-1

[Event "*** Titled Tuesday 3|2 Blitz"]
[Site "Chess.com"]
[Date "2016.05.03"]
[Round "6"]
[White "eugeniusjr"]
[Black "smurfo"]
[Result "0-1"]
[WhiteElo "1889"]
[BlackElo "2529"]
[TimeControl "180+2"]
[EndTime "12:15:07 PDT"]
[Termination "smurfo won on time"]

1. c4 {[%clk 0:03:01.9]} 1... e5 {[%clk 0:02:59.2]} 2. g3 {[%clk 0:03:03]} 2...
Nf6 {[%clk 0:02:59.8]} 3. Bg2 {[%clk 0:03:02.9]} 3... d5 {[%clk 0:03:01.1]} 4.
cxd5 {[%clk 0:03:04.8]} 4... Nxd5 {[%clk 0:03:02.6]} 5. Nc3 {[%clk 0:03:06.3]}
5... Nb6 {[%clk 0:03:03.7]} 6. Nf3 {[%clk 0:03:06.7]} 6... Nc6 {[%clk
0:03:04.5]} 7. a3 {[%clk 0:03:08.1]} 7... Be6 {[%clk 0:03:00.1]} 8. O-O {[%clk
0:03:08.6]} 8... Be7 {[%clk 0:03:00]} 9. b4 {[%clk 0:03:09.6]} 9... O-O {[%clk
0:03:00.8]} 10. d3 {[%clk 0:03:09.1]} 10... a5 {[%clk 0:02:43.3]} 11. b5 {[%clk
0:03:09.2]} 11... Nd4 {[%clk 0:02:44.5]} 12. Nxd4 {[%clk 0:02:51.1]} 12... exd4
{[%clk 0:02:43.6]} 13. Na4 {[%clk 0:02:44.6]} 13... Bd5 {[%clk 0:02:40.4]} 14.
Bh3 {[%clk 0:02:04.9]} 14... c5 {[%clk 0:02:20.8]} 15. Bd2 {[%clk 0:01:52.6]}
15... Nxa4 {[%clk 0:02:18.4]} 16. Qxa4 {[%clk 0:01:52.5]} 16... b6 {[%clk
0:02:18.9]} 17. e3 {[%clk 0:01:44.3]} 17... dxe3 {[%clk 0:01:58.4]} 18. Bxe3
{[%clk 0:01:38.2]} 18... Bf6 {[%clk 0:01:56.3]} 19. Rac1 {[%clk 0:01:35.7]}
19... Re8 {[%clk 0:01:46.8]} 20. d4 {[%clk 0:01:07.1]} 20... cxd4 {[%clk
0:01:06.8]} 21. Bxd4 {[%clk 0:01:05.1]} 21... Bb7 {[%clk 0:01:03.8]} 22. Bxf6
{[%clk 0:00:39.3]} 22... Qd5 {[%clk 0:01:00.4]} 23. f3 {[%clk 0:00:34.2]} 23...
gxf6 {[%clk 0:01:01.1]} 24. Qg4+ {[%clk 0:00:22.2]} 24... Kh8 {[%clk 0:01:02.2]}
25. Qh4 {[%clk 0:00:20.9]} 25... Kg7 {[%clk 0:00:41.9]} 26. Rc4 {[%clk
0:00:09.2]} 26... Re5 {[%clk 0:00:28.9]} 27. Rg4+ {[%clk 0:00:04.9]} 27... Rg5
{[%clk 0:00:29.8]} 28. Rxg5+ {[%clk 0:00:05.1]} 28... fxg5 {[%clk 0:00:31.2]}
29. Qg4 {[%clk 0:00:05.3]} 29... Re8 {[%clk 0:00:21.9]} 30. a4 {[%clk
0:00:05.8]} 30... Re2 {[%clk 0:00:20.9]} 31. Qf5 {[%clk 0:00:04]} 31... Qd4+
{[%clk 0:00:20.8]} 32. Kh1 {[%clk 0:00:03.9]} 32... h6 {[%clk 0:00:21.3]} 33.
Qb1 {[%clk 0:00:03.6]} 33... Qd2 {[%clk 0:00:21.4]} 0-1

[Event "*** Titled Tuesday 3|2 Blitz"]
[Site "Chess.com"]
[Date "2016.05.03"]
[Round "6"]
[White "chess960now"]
[Black "FearNoEvil12"]
[Result "1-0"]
[WhiteElo "1974"]
[BlackElo "1900"]
[TimeControl "180+2"]
[EndTime "12:15:14 PDT"]
[Termination "chess960now won on time"]

1. d4 {[%clk 0:03:01.9]} 1... Nf6 {[%clk 0:02:58.4]} 2. c4 {[%clk 0:03:02.3]}
2... d6 {[%clk 0:02:57.3]} 3. Nf3 {[%clk 0:03:00.1]} 3... g6 {[%clk 0:02:58.4]}
4. g3 {[%clk 0:03:00.6]} 4... Bg7 {[%clk 0:02:59.6]} 5. Bg2 {[%clk 0:03:01.4]}
5... O-O {[%clk 0:03:00.8]} 6. O-O {[%clk 0:02:58.7]} 6... Nc6 {[%clk 0:02:11]}
7. Nc3 {[%clk 0:02:56.5]} 7... a6 {[%clk 0:01:41.5]} 8. e4 {[%clk 0:02:42]} 8...
Rb8 {[%clk 0:01:35.3]} 9. a4 {[%clk 0:02:33.2]} 9... e5 {[%clk 0:01:25.5]} 10.
d5 {[%clk 0:02:29.9]} 10... Ne7 {[%clk 0:01:12.1]} 11. Qd3 {[%clk 0:02:23.9]}
11... h6 {[%clk 0:01:10.3]} 12. h3 {[%clk 0:02:24.2]} 12... Kh7 {[%clk
0:01:10.3]} 13. Be3 {[%clk 0:02:25.1]} 13... Nd7 {[%clk 0:01:09]} 14. b4 {[%clk
0:02:24.4]} 14... f5 {[%clk 0:01:06.5]} 15. Rac1 {[%clk 0:02:12.1]} 15... f4
{[%clk 0:01:06.3]} 16. Bd2 {[%clk 0:02:12.8]} 16... g5 {[%clk 0:01:03.7]} 17. g4
{[%clk 0:02:11.4]} 17... Nf6 {[%clk 0:01:03.3]} 18. c5 {[%clk 0:02:10.1]} 18...
Ng6 {[%clk 0:01:02.7]} 19. cxd6 {[%clk 0:02:07.1]} 19... cxd6 {[%clk 0:01:01.1]}
20. b5 {[%clk 0:02:06.3]} 20... Nd7 {[%clk 0:00:51.2]} 21. Na2 {[%clk
0:01:55.5]} 21... Nc5 {[%clk 0:00:48.8]} 22. Qc2 {[%clk 0:01:56.5]} 22... h5
{[%clk 0:00:44.3]} 23. gxh5 {[%clk 0:01:42.2]} 23... Nh4 {[%clk 0:00:44.6]} 24.
Nxh4 {[%clk 0:01:15.1]} 24... gxh4 {[%clk 0:00:46.5]} 25. f3 {[%clk 0:00:58.5]}
25... Qg5 {[%clk 0:00:43.6]} 26. Kh1 {[%clk 0:00:58.5]} 26... Qxh5 {[%clk
0:00:36.4]} 27. Bb4 {[%clk 0:00:58.3]} 27... b6 {[%clk 0:00:33.6]} 28. a5 {[%clk
0:00:54.7]} 28... Rg8 {[%clk 0:00:20.2]} 29. axb6 {[%clk 0:00:54.4]} 29... Bf8
{[%clk 0:00:19.1]} 30. Bxc5 {[%clk 0:00:50]} 30... dxc5 {[%clk 0:00:19.1]} 31.
bxa6 {[%clk 0:00:44.2]} 31... Bxa6 {[%clk 0:00:18.3]} 32. Rg1 {[%clk 0:00:45.4]}
32... Rxb6 {[%clk 0:00:11.7]} 33. Nc3 {[%clk 0:00:44.8]} 33... Rbg6 {[%clk
0:00:10.8]} 34. Na4 {[%clk 0:00:32.9]} 34... Bc8 {[%clk 0:00:10.1]} 35. Nxc5
{[%clk 0:00:26.4]} 1-0

[Event "*** Titled Tuesday 3|2 Blitz"]
[Site "Chess.com"]
[Date "2016.05.03"]
[Round "6"]
[White "rhungaski"]
[Black "GMVladimir_Petkov"]
[Result "0-1"]
[WhiteElo "2450"]
[BlackElo "2372"]
[TimeControl "180+2"]
[EndTime "12:15:15 PDT"]
[Termination "GMVladimir_Petkov won by checkmate"]

1. Nf3 {[%clk 0:03:01.9]} 1... d5 {[%clk 0:03:00]} 2. c4 {[%clk 0:03:01.5]} 2...
d4 {[%clk 0:03:00.5]} 3. e4 {[%clk 0:02:55.2]} 3... c5 {[%clk 0:02:58.7]} 4. d3
{[%clk 0:02:55]} 4... Nc6 {[%clk 0:02:59.7]} 5. Be2 {[%clk 0:02:54.2]} 5... e5
{[%clk 0:03:00.5]} 6. O-O {[%clk 0:02:55.3]} 6... Bd6 {[%clk 0:03:01.7]} 7. Na3
{[%clk 0:02:56.6]} 7... Nge7 {[%clk 0:03:02.3]} 8. Nc2 {[%clk 0:02:58]} 8... O-O
{[%clk 0:03:02.8]} 9. a3 {[%clk 0:02:54]} 9... a5 {[%clk 0:03:03.7]} 10. Rb1
{[%clk 0:02:55]} 10... a4 {[%clk 0:03:04.9]} 11. b4 {[%clk 0:02:51.4]} 11...
axb3 {[%clk 0:03:06.1]} 12. Rxb3 {[%clk 0:02:52.7]} 12... b6 {[%clk 0:03:06]}
13. Nfe1 {[%clk 0:02:45.8]} 13... g6 {[%clk 0:02:55.2]} 14. Bh6 {[%clk
0:02:41.5]} 14... Re8 {[%clk 0:02:56.3]} 15. Bg4 {[%clk 0:02:42.7]} 15... f5
{[%clk 0:02:57.4]} 16. exf5 {[%clk 0:02:42.8]} 16... gxf5 {[%clk 0:02:58.8]} 17.
Bh5 {[%clk 0:02:27.1]} 17... Ng6 {[%clk 0:02:56.8]} 18. Nf3 {[%clk 0:02:21.4]}
18... e4 {[%clk 0:02:49.9]} 19. Ng5 {[%clk 0:02:21.6]} 19... Qf6 {[%clk
0:02:48.8]} 20. Rxb6 {[%clk 0:02:13.9]} 20... Bc7 {[%clk 0:02:47.4]} 21. Rb3
{[%clk 0:01:56.3]} 21... Bd7 {[%clk 0:02:46.3]} 22. dxe4 {[%clk 0:01:53.9]}
22... fxe4 {[%clk 0:02:46.9]} 23. g3 {[%clk 0:01:46.5]} 23... Re5 {[%clk
0:02:37.3]} 24. Rb7 {[%clk 0:01:40.2]} 24... Rc8 {[%clk 0:02:35]} 25. f4 {[%clk
0:01:37.9]} 25... Re7 {[%clk 0:02:34.7]} 26. Bg4 {[%clk 0:01:22.7]} 26... Bf5
{[%clk 0:02:17]} 27. Bxf5 {[%clk 0:01:19.5]} 27... Qxf5 {[%clk 0:02:16.1]} 28.
g4 {[%clk 0:01:03.3]} 28... Qf6 {[%clk 0:02:12.7]} 29. Nh3 {[%clk 0:01:01.8]}
29... Qh4 {[%clk 0:02:02.3]} 30. Bg5 {[%clk 0:01:03]} 30... Qxh3 {[%clk
0:02:03.6]} 31. Bxe7 {[%clk 0:01:04]} 31... Nxf4 {[%clk 0:02:02.9]} 32. Rxf4
{[%clk 0:00:32.2]} 32... Bxf4 {[%clk 0:02:03]} 33. Qe2 {[%clk 0:00:33.7]} 33...
d3 {[%clk 0:01:46.4]} 34. Qxe4 {[%clk 0:00:34.5]} 34... Qxg4+ {[%clk 0:01:32.5]}
35. Kh1 {[%clk 0:00:25.9]} 35... Ne5 {[%clk 0:01:05.4]} 36. Qd5+ {[%clk
0:00:16.2]} 36... Nf7 {[%clk 0:01:05.4]} 37. Bxc5 {[%clk 0:00:15.6]} 37... Qd1+
{[%clk 0:00:55.9]} 38. Bg1 {[%clk 0:00:17]} 38... Rf8 {[%clk 0:00:49.8]} 39.
Qg2+ {[%clk 0:00:13.7]} 39... Kh8 {[%clk 0:00:48.1]} 40. Nd4 {[%clk 0:00:11.9]}
40... Rg8 {[%clk 0:00:48.4]} 41. Qf3 {[%clk 0:00:10.4]} 41... Qxg1# {[%clk
0:00:47.6]} 0-1

[Event "*** Titled Tuesday 3|2 Blitz"]
[Site "Chess.com"]
[Date "2016.05.03"]
[Round "6"]
[White "destroyer305"]
[Black "Ksenia_Legenko"]
[Result "0-1"]
[WhiteElo "2244"]
[BlackElo "2045"]
[TimeControl "180+2"]
[EndTime "12:15:24 PDT"]
[Termination "Ksenia_Legenko won by resignation"]

1. e4 {[%clk 0:03:01.9]} 1... c6 {[%clk 0:03:00.6]} 2. d4 {[%clk 0:03:02.7]}
2... d5 {[%clk 0:02:58.9]} 3. exd5 {[%clk 0:03:04.1]} 3... cxd5 {[%clk
0:02:59.7]} 4. Bd3 {[%clk 0:03:05.6]} 4... Nc6 {[%clk 0:03:00]} 5. c3 {[%clk
0:03:07]} 5... Nf6 {[%clk 0:03:00.8]} 6. Bf4 {[%clk 0:03:08.5]} 6... Bg4 {[%clk
0:03:01.1]} 7. Qb3 {[%clk 0:03:10]} 7... Qd7 {[%clk 0:03:01.2]} 8. Nd2 {[%clk
0:03:11.5]} 8... e6 {[%clk 0:03:02.3]} 9. Ngf3 {[%clk 0:03:12.9]} 9... Bxf3
{[%clk 0:03:03.3]} 10. Nxf3 {[%clk 0:03:13.1]} 10... Bd6 {[%clk 0:03:04.6]} 11.
Bg3 {[%clk 0:03:13.3]} 11... O-O {[%clk 0:03:03.2]} 12. O-O {[%clk 0:03:13.9]}
12... Rab8 {[%clk 0:03:02]} 13. Rae1 {[%clk 0:03:13]} 13... Qc7 {[%clk
0:02:54.6]} 14. Ne5 {[%clk 0:03:02.3]} 14... b5 {[%clk 0:02:46.1]} 15. Qd1
{[%clk 0:03:01.3]} 15... b4 {[%clk 0:02:43.1]} 16. f4 {[%clk 0:03:01.6]} 16...
bxc3 {[%clk 0:02:42.3]} 17. bxc3 {[%clk 0:03:03.5]} 17... Rb2 {[%clk 0:02:31.9]}
18. Bh4 {[%clk 0:03:04.3]} 18... Ne4 {[%clk 0:02:05.8]} 19. Qh5 {[%clk
0:02:30.2]} 19... f5 {[%clk 0:01:34.3]} 20. Rf3 {[%clk 0:02:08.5]} 20... Bxe5
{[%clk 0:01:26.5]} 21. fxe5 {[%clk 0:02:08.6]} 21... Qf7 {[%clk 0:01:18]} 22.
Qxf7+ {[%clk 0:02:00.2]} 22... Rxf7 {[%clk 0:01:15.7]} 23. a4 {[%clk 0:01:54.4]}
23... Nxc3 {[%clk 0:01:14.5]} 24. Bxf5 {[%clk 0:01:46.5]} 24... Rxf5 {[%clk
0:00:47.2]} 25. Rxc3 {[%clk 0:01:47.2]} 25... Nxd4 {[%clk 0:00:48.3]} 26. Rc8+
{[%clk 0:01:37.7]} 26... Kf7 {[%clk 0:00:39.7]} 27. Rc7+ {[%clk 0:01:37.5]}
27... Kg6 {[%clk 0:00:40.1]} 28. Rxa7 {[%clk 0:01:27.1]} 28... Ne2+ {[%clk
0:00:39.9]} 29. Kh1 {[%clk 0:01:27]} 29... Rxe5 {[%clk 0:00:40.8]} 30. Rf1
{[%clk 0:01:18.2]} 30... Rf5 {[%clk 0:00:40.5]} 31. Ra1 {[%clk 0:01:14]} 31...
Rc2 {[%clk 0:00:37]} 32. a5 {[%clk 0:01:11]} 32... d4 {[%clk 0:00:36.1]} 33. a6
{[%clk 0:01:10.6]} 33... d3 {[%clk 0:00:37.4]} 34. Rd7 {[%clk 0:01:11.7]} 34...
d2 {[%clk 0:00:35.1]} 35. Rd1 {[%clk 0:01:09.2]} 35... Rc1 {[%clk 0:00:32.6]}
36. g4 {[%clk 0:00:57.6]} 36... Rxd1+ {[%clk 0:00:32]} 37. Kg2 {[%clk
0:00:59.2]} 37... Ra5 {[%clk 0:00:29.8]} 38. a7 {[%clk 0:00:48.8]} 38... Rg1+
{[%clk 0:00:29]} 39. Kf2 {[%clk 0:00:49]} 39... d1=Q {[%clk 0:00:29.5]} 0-1

[Event "*** Titled Tuesday 3|2 Blitz"]
[Site "Chess.com"]
[Date "2016.05.03"]
[Round "6"]
[White "maciek_92"]
[Black "Inopov"]
[Result "0-1"]
[WhiteElo "2562"]
[BlackElo "2475"]
[TimeControl "180+2"]
[EndTime "12:15:26 PDT"]
[Termination "Inopov won by resignation"]

1. c4 {[%clk 0:03:01.9]} 1... e6 {[%clk 0:03:00]} 2. Nf3 {[%clk 0:03:02.6]} 2...
d5 {[%clk 0:03:01.3]} 3. d4 {[%clk 0:03:03]} 3... c6 {[%clk 0:03:01.4]} 4. Nc3
{[%clk 0:03:03.9]} 4... Nf6 {[%clk 0:02:59.5]} 5. e3 {[%clk 0:03:01.9]} 5...
Nbd7 {[%clk 0:02:59.9]} 6. Qc2 {[%clk 0:03:02.4]} 6... Bd6 {[%clk 0:02:59.8]} 7.
Bd3 {[%clk 0:03:00.8]} 7... O-O {[%clk 0:02:59.7]} 8. O-O {[%clk 0:03:01.4]}
8... dxc4 {[%clk 0:02:59.5]} 9. Bxc4 {[%clk 0:03:03.3]} 9... e5 {[%clk 0:03:01]}
10. Rd1 {[%clk 0:02:54.1]} 10... Qe7 {[%clk 0:02:54.3]} 11. Nh4 {[%clk
0:02:39.3]} 11... Nb6 {[%clk 0:02:47]} 12. Be2 {[%clk 0:02:36.7]} 12... e4
{[%clk 0:02:39]} 13. g3 {[%clk 0:02:22.8]} 13... Nbd5 {[%clk 0:02:16.6]} 14. Ng2
{[%clk 0:02:16.9]} 14... g5 {[%clk 0:02:08.8]} 15. f3 {[%clk 0:02:17.7]} 15...
Bf5 {[%clk 0:01:56.6]} 16. fxe4 {[%clk 0:02:09.5]} 16... Nxe4 {[%clk 0:01:51.3]}
17. Qb3 {[%clk 0:01:32.6]} 17... Ndf6 {[%clk 0:00:57]} 18. Rf1 {[%clk
0:01:25.5]} 18... Bg6 {[%clk 0:00:50.8]} 19. Bf3 {[%clk 0:01:05.5]} 19... Rae8
{[%clk 0:00:50.4]} 20. a3 {[%clk 0:01:03.9]} 20... Kg7 {[%clk 0:00:50.1]} 21.
Qd1 {[%clk 0:01:00.9]} 21... h5 {[%clk 0:00:50.1]} 22. Nxe4 {[%clk 0:00:57.3]}
22... Bxe4 {[%clk 0:00:44.6]} 23. Bxe4 {[%clk 0:00:55.3]} 23... Qxe4 {[%clk
0:00:37]} 24. Rxf6 {[%clk 0:00:55.7]} 24... Kxf6 {[%clk 0:00:37.2]} 25. Qxh5
{[%clk 0:00:57.1]} 25... Rh8 {[%clk 0:00:33.7]} 26. Qe2 {[%clk 0:00:58.6]} 26...
Rh3 {[%clk 0:00:29.9]} 27. Bd2 {[%clk 0:00:57]} 27... Reh8 {[%clk 0:00:29.8]}
28. Rf1+ {[%clk 0:00:55.5]} 28... Kg6 {[%clk 0:00:27.8]} 29. Rf2 {[%clk
0:00:25.1]} 29... Bxg3 {[%clk 0:00:27.8]} 30. Nf4+ {[%clk 0:00:14.2]} 30... Bxf4
{[%clk 0:00:25.8]} 31. exf4 {[%clk 0:00:14]} 31... Qxe2 {[%clk 0:00:26.5]} 32.
Rxe2 {[%clk 0:00:15.9]} 32... g4 {[%clk 0:00:27.2]} 33. Bc3 {[%clk 0:00:11.4]}
33... g3 {[%clk 0:00:27.2]} 34. hxg3 {[%clk 0:00:11.9]} 34... Rxg3+ {[%clk
0:00:26.8]} 35. Kf2 {[%clk 0:00:13.8]} 35... Rh2+ {[%clk 0:00:27]} 36. Kxg3
{[%clk 0:00:14.9]} 36... Rxe2 {[%clk 0:00:28.5]} 37. Kf3 {[%clk 0:00:15.9]}
37... Rc2 {[%clk 0:00:28.6]} 38. Ke4 {[%clk 0:00:16.8]} 38... Re2+ {[%clk
0:00:29.7]} 39. Kf3 {[%clk 0:00:17.5]} 39... Re6 {[%clk 0:00:29.3]} 40. a4
{[%clk 0:00:18.8]} 40... Kf5 {[%clk 0:00:29.9]} 41. Bd2 {[%clk 0:00:17.4]} 41...
Rh6 {[%clk 0:00:29.5]} 42. Be3 {[%clk 0:00:17]} 42... Rh3+ {[%clk 0:00:30.1]}
43. Ke2 {[%clk 0:00:17.9]} 43... Ke4 {[%clk 0:00:31.3]} 0-1